Cogmind - Beta 13 @@@ ROGUE MODE // 2024.04.15 @ 21:14:25 Player: double j Result: Destroyed by Y-45 Defender with Beam Rifle Performance ------------- Evolutions (1) 500 Regions Visited (3) 600 Robots Destroyed (4) 20 Value Destroyed (131) 131 Prototype IDs (6) 120 Alien Tech Used (0) 0 Bonus (200) 200 TOTAL SCORE: 1571 Bonus ------- Pacifist 200 Cogmind --------- Core Integrity 0/400 Matter 116/300 Energy 100/100 System Corruption 0% Temperature Cool (72) Movement Core (150) Ox2 Location -9/Storage Parts ------- > --- POWER (1) -------- (None) > --- PROPULSION (2) --- (None) > --- UTILITY (4) ------ Small Storage Unit Terrain Scan Processor > --- WEAPON (2) ------- Mini Assault Cannon > --- INVENTORY (8) ---- Improved Hover Unit Improved Flight Unit Improved Flight Unit Improved Flight Unit Drone Bay (2/2) Drone Bay (2/2) Peak State ------------ > --- POWER ------------ Light Ion Engine > --- PROPULSION ------- Improved Hover Unit Improved Hover Unit > --- UTILITY ---------- Small Storage Unit Terrain Scan Processor Drone Bay Drone Bay > --- WEAPON ----------- Rocket Launcher > --- INVENTORY -------- Improved Hover Unit Improved Flight Unit Improved Flight Unit Improved Flight Unit Drone Bay Mini Assault Cannon [Rating: 22] Favorites ----------- Power Light Ion Engine Engine Light Ion Engine Propulsion Aluminum Leg Treads Light Treads Leg Aluminum Leg Hover Unit Improved Hover Unit Flight Unit Improved Flight Unit Utility Small Storage Unit Device Seismic Detector Storage Small Storage Unit Processor Terrain Scan Processor Weapon EM Pulse Gun Energy Gun EM Pulse Gun Ballistic Cannon Mini Assault Cannon Launcher Rocket Launcher Special Weapon Mining Laser Build | -11 -10 -9 -9 ------- Run | Yrd Mat Mat Sto Slots Evolved 2 | . . 2 . Power . | . . . . Propulsion . | . . . . Utility 2 | . . 2 . Weapon . | . . . . Parts Attached 26 | 7 2 3 14 Power 3 | 1 . 1 1 Engine 3 | 1 . 1 1 Core . | . . . . Reactor . | . . . . Propulsion 12 | 4 . 2 6 Treads 4 | 2 . 2 . Leg 2 | 2 . . . Wheel . | . . . . Hover 4 | . . . 4 Flight 2 | . . . 2 Utility 7 | 1 1 . 5 Device 5 | . 1 . 4 Storage 1 | 1 . . . Processor 1 | . . . 1 Hackware . | . . . . Protection . | . . . . Artifact . | . . . . Weapon 4 | 1 1 . 2 Energy Gun 1 | 1 . . . Energy Cannon . | . . . . Ballistic Gun . | . . . . Ballistic Cannon 1 | . . . 1 Launcher 1 | . . . 1 Special Weapon 1 | . 1 . . Impact Weapon . | . . . . Slashing Weapon . | . . . . Piercing Weapon . | . . . . Special Melee Weapon . | . . . . Unidentified Prototypes 2 | . . . 2 Parts Lost 14 | . . 7 7 Power 3 | . . 2 1 Propulsion 4 | . . 2 2 Utility 4 | . . 1 3 Weapon 3 | . . 2 1 Highest Loss Streak 6 | . . 6 6 To Critical Strikes . | . . . . Average Slot Usage (%) 75 | . 94 67 67 Engine 11 | . 14 10 11 Treads 2 | . . 3 3 Leg 12 | . 28 18 . Hover 8 | . . . 18 Device 9 | . 13 9 6 Storage 11 | . 14 11 11 Processor 3 | . . . 6 Energy Gun 6 | . 14 9 . Launcher 4 | . . . 10 Special Weapon 4 | . 8 6 . Naked Turns . | . . . . Heaviest Build 24 | 10 12 12 24 Greatest Support 40 | 40 20 40 40 Greatest Overweight (x) 2 | . . 2 2 Average Overweight (x) . | . . . . Largest Inventory Capacity 8 | 8 8 8 8 Average Capacity 7 | 7 8 8 8 Most Carried 7 | 4 5 4 7 Average Carried 3 | 1 3 3 4 Final Capacity 8 | 8 8 8 8 Final Carried 6 | 3 4 1 6 Class Distribution -------------------- 100% | Mutant Dominant Class ---------------- Mutant | -10/Materials Mutant | -9/Materials Mutant | -9/Storage Resources | -11 -10 -9 -9 ----------- Run | Yrd Mat Mat Sto Matter Collected 242 | 194 . 48 . Remotely . | . . . . Salvage Created 165 | . . 48 117 Parts 8 | . . 2 6 Haulers Intercepted . | . . . . Recyclers Shooed . | . . . . Parts Field Recycled . | . . . . Retrieved Matter . | . . . . Parts Self-Destructed . | . . . . Prevented . | . . . . Kills | -11 -10 -9 -9 ------- Run | Yrd Mat Mat Sto Combat Hostiles Destroyed 3 | . . 1 2 Guns 1 | . . 1 . Cannons 1 | . . . 1 AOE 1 | . . . 1 Classes Destroyed 2 | . . 1 1 Recycler 1 | . . . 1 Grunt 3 | . . 1 2 Best Kill Streak 3 | . . 1 3 Combat Bots Only 2 | . . 1 2 Max Kills in Single Turn 1 | . . 1 1 Gunslinging . | . . . . Exploded 1 | . . . 1 Melee . | . . . . Uniques/NPCs Destroyed . | . . . . Combat | -11 -10 -9 -9 -------- Run | Yrd Mat Mat Sto Hostile Shots Fired 159 | . 3 88 68 Missed 45 | . 2 22 21 Damage Taken 1598 | . 15 803 780 Core 408 | . . 234 174 Absorbed by Shields . | . . . . Core Remaining (%) 100 | 100 100 . . Volleys Fired 16 | . 4 7 5 Largest 1 | . 1 1 1 Hottest 100 | . 100 100 48 Shots Fired 16 | . 4 7 5 Gun 6 | . . 6 . Cannon 1 | . . . 1 Launcher 4 | . . . 4 Special 5 | . 4 1 . Kinetic 1 | . . . 1 Thermal 5 | . 4 1 . Explosive 4 | . . . 4 Electromagnetic 6 | . . 6 . Robot Hit Streak 3 | . . 2 3 Robot Miss Streak 3 | . . 2 3 Penetration Max . | . . . . Secondary Targets . | . . . . Shots Hit Robots 6 | . . 3 3 Core Hits 17 | . . 2 15 Critical Kills . | . . . . Critical Parts Destroyed . | . . . . Critical Strikes . | . . . . Melee Attacks . | . . . . Impact . | . . . . Slashing . | . . . . Piercing . | . . . . Sneak Attacks . | . . . . Combat Hostiles . | . . . . Follow-up Attacks . | . . . . Damage Inflicted 642 | . . 39 603 Guns 39 | . . 39 . Cannons 24 | . . . 24 Explosions 539 | . . . 539 Melee . | . . . . Ramming 40 | . . . 40 Kinetic 24 | . . . 24 Thermal . | . . . . Explosive 539 | . . . 539 Electromagnetic 39 | . . 39 . Impact . | . . . . Slashing . | . . . . Piercing . | . . . . Highest Corruption . | . . . . Average Corruption . | . . . . Corruption Purged . | . . . . Corruption Blocked . | . . . . Overload Shots . | . . . . Overflow Damage 13 | . . . 13 Projectiles . | . . . . Explosions 13 | . . . 13 Melee . | . . . . Knockbacks . | . . . . Impact . | . . . . Kinetic . | . . . . Secondary . | . . . . Self-Inflicted Damage 58 | . . . 58 Shots 2 | . . . 2 Rammed 4 | . . . 4 Targets Rammed 4 | . . . 4 Kicked . | . . . . Crushed . | . . . . Highest Temperature 120 | . 22 12 120 Average Temperature 22 | . 11 5 53 Received Heat Transfer 675 | . 9 369 297 Siege Activations . | . . . . Robots Corrupted . | . . . . Combat Hostiles . | . . . . Parts Fried . | . . . . Impact Corruptions . | . . . . Robots Melted . | . . . . Combat Hostiles . | . . . . Parts Melted . | . . . . Heat Transferred . | . . . . Parts Sabotaged . | . . . . Parts Stolen . | . . . . Parts Stripped . | . . . . Power Chain Reactions . | . . . . Alert | -11 -10 -9 -9 ------- Run | Yrd Mat Mat Sto Peak Influence 158 | . 19 48 158 Initial 7 | . . 7 . Average 27 | . 2 13 54 Maximum Alert Level . | . . . . Low Security (%) 100 | 100 100 100 100 Level 1 . | . . . . Level 2 . | . . . . Level 3 . | . . . . Level 4 . | . . . . Level 5 . | . . . . High Security . | . . . . Max Security . | . . . . Squads Dispatched 3 | . . 2 1 Investigation . | . . . . Extermination . | . . . . Reinforcement 3 | . . 2 1 Assault . | . . . . Garrison . | . . . . Intercept . | . . . . Searches Triggered . | . . . . Construction Impeded . | . . . . Haulers Reinforced . | . . . . Active Scanning Responses . | . . . . Cargo Convoy Interrupts . | . . . . Stealth | -11 -10 -9 -9 --------- Run | Yrd Mat Mat Sto Distress Signals 2 | . . 1 1 Communications Jammed . | . . . . Distress Signals . | . . . . Times Spotted 31 | . 2 11 18 Peak Tracking Total 10 | . 2 8 10 Tactical Retreats 4 | . . . 4 Traps | -11 -10 -9 -9 ------- Run | Yrd Mat Mat Sto Traps Triggered 1 | . . . 1 Indirectly . | . . . . Trap Hack Attempts . | . . . . Triggered . | . . . . Disarmed . | . . . . Reprogrammed . | . . . . Reused . | . . . . Traps Extracted . | . . . . Installed . | . . . . Triggered . | . . . . Machines | -11 -10 -9 -9 ---------- Run | Yrd Mat Mat Sto Machines Disabled 1 | . . . 1 Max in Single Turn 1 | . . . 1 Machines Repaired . | . . . . Machines Dismantled . | . . . . Machines Sabotaged . | . . . . Overloaded Fab Kills . | . . . . Hacking | -11 -10 -9 -9 --------- Run | Yrd Mat Mat Sto Machines Accessed 9 | . 2 . 7 Terminals 8 | . 1 . 7 Fabricators . | . . . . Repair Stations 1 | . 1 . . Recycling Units . | . . . . Scanalyzers . | . . . . Garrison Access . | . . . . Total Hacks 23 | . 5 . 18 Successful 12 | . 1 . 11 Failed 11 | . 4 . 7 Catastrophic 3 | . . . 3 Database Lockouts . | . . . . Manual 1 | . . . 1 Terminals 20 | . 2 . 18 Fabricators . | . . . . Repair Stations 3 | . 3 . . Recycling Units . | . . . . Scanalyzers . | . . . . Garrison Access . | . . . . Terminal Hacks 12 | . 1 . 11 Robot Analysis 2 | . . . 2 Prototype ID Bank 2 | . 1 . 1 Open Door 3 | . . . 3 Emergency Access Points 1 | . . . 1 Repair Station Index 1 | . . . 1 Locate Traps 1 | . . . 1 Dispatch Records 1 | . . . 1 Transport Status 1 | . . . 1 Fabricator Hacks . | . . . . Repair Station Hacks . | . . . . Recycling Unit Hacks . | . . . . Scanalyzer . | . . . . Garrison Access Hacks . | . . . . Unauthorized Hacks . | . . . . Terminals . | . . . . Fabricators . | . . . . Repair Stations . | . . . . Recycling Units . | . . . . Scanalyzers . | . . . . Garrison Access . | . . . . Data Cores Recovered . | . . . . Used . | . . . . Hacking Detections 6 | . 2 . 4 Full Trace Events 1 | . . . 1 Feedback Events . | . . . . Feedback Blocked . | . . . . Robot Schematics Acquired . | . . . . Robots Built . | . . . . Authchips . | . . . . Time . | . . . . Total Robot Build Rating . | . . . . Part Schematics Acquired . | . . . . Parts Built . | . . . . Authchips . | . . . . Time . | . . . . Total Part Build Rating . | . . . . Parts Repaired . | . . . . Time . | . . . . Parts Recycled . | . . . . Recycled Matter . | . . . . Retrieved Matter . | . . . . Retrieved Components . | . . . . Parts Scanalyzed . | . . . . Part Schematics Acquired . | . . . . Parts Damaged . | . . . . Bothacking | -11 -10 -9 -9 ------------ Run | Yrd Mat Mat Sto Used RIF Installer . | . . . . Robots Hacked . | . . . . Non-combat . | . . . . Combat . | . . . . Robot Hacks Applied . | . . . . Relay Couplers Released . | . . . . Fabnet Peak Effective % . | . . . . Robots Rewired . | . . . . Allies Hacked . | . . . . Hacks Repelled . | . . . . Allies | -11 -10 -9 -9 -------- Run | Yrd Mat Mat Sto Total Allies . | . . . . Largest Group . | . . . . Highest-Rated Group . | . . . . Highest-Rated Ally . | . . . . Total Orders . | . . . . Ally Attacks . | . . . . Total Damage . | . . . . Kills . | . . . . Allies Corrupted . | . . . . Allies Melted . | . . . . Intel | -11 -10 -9 -9 ------- Run | Yrd Mat Mat Sto Robot Analysis Total 2 | . . . 2 Derelict Logs Recovered . | . . . . Drone Launches 4 | . . . 4 Drone Recoveries 2 | . . . 2 Exploration | -11 -10 -9 -9 ------------- Run | Yrd Mat Mat Sto Turns Passed 1048 | 63 303 214 468 Spaces Moved 873 | 40 181 109 543 Core 11 | 7 . 2 2 Treads 72 | 12 . 19 41 Legs 290 | 21 181 88 . Wheels . | . . . . Hover 500 | . . . 500 Flight . | . . . . Fastest Speed 50 | 50 120 120 56 Average Speed 86 | 119 120 127 65 Slowest Speed 160 | 160 120 160 160 Overloaded Moves . | . . . . Propulsion Burnouts . | . . . . Robots Hopped . | . . . . Cave-ins Triggered . | . . . . Exploration Rate (%) 26 | 4 17 14 72 Regions Visited 3 Branch Regions 1 Pre-discovered Areas 1 | . . . 1 Known Exits Taken . | . . . . Unknown Exits Taken 3 | 1 1 1 . Scrap Searched . | . . . . Spaces Dug 5 | . 4 1 . Terrain Destroyed 41 | . 4 1 36 Melee . | . . . . Projectile 5 | . 4 1 . AOE 36 | . . . 36 Terrain Rammed . | . . . . Walls Destroyed . | . . . . Machines Disabled . | . . . . Actions | -11 -10 -9 -9 --------- Run | Yrd Mat Mat Sto Total 1139 | 56 255 175 653 Wait 188 | . 66 57 65 Move 870 | 39 180 108 543 Hop . | . . . . Pick Up 26 | 8 3 . 15 Fast Attach . | . . . . Attach 24 | 7 2 3 12 Detach 6 | 2 . . 4 Swap 2 | . . . 2 Drop 3 | . . . 3 Fire 16 | . 4 7 5 Melee . | . . . . Ram 4 | . . . 4 Kick . | . . . . Crush . | . . . . Escape Stasis . | . . . . Rewire . | . . . . Trap . | . . . . Miscellaneous . | . . . . Route ------- -11/Scrapyard -10/Materials -9/Materials -9/Storage History --------- Turn | Location | Event 5 | -11/Scrapyard | Discovered new exit (range 15) 64 | -11/Scrapyard | Entered Materials 310 | -10/Materials | Build established: Mutant 360 | -10/Materials | Discovered new exit (range 7) 367 | -10/Materials | Entered another Materials area 367 | -9/Materials | Evolved 2 slots: Utility x2 547 | -9/Materials | Discovered new exit (range 15) 560 | -9/Materials | Core integrity fell below 50% 581 | -9/Materials | Entered Storage 610 | -9/Storage | Lost 6 parts (2p2n1u1w) 713 | -9/Storage | Learned location of Armory (-4) 1047 | -9/Storage | Core integrity fell below 20% 1049 | -9/Storage | Destroyed by Y-45 Defender with Beam Rifle Last Messages --------------- G-34 Mercenary destroyed. Door Terminal disabled. Destroyed Heat Sink. Drone Bay destroyed. R-06 Scavenger destroyed. The unstable cave ceiling collapses. Imp. Hover Unit destroyed. Rocket Launcher destroyed. Identified Mni. Assault Cannon. W-16 Scout sends out distress signal. G-47 Trooper destroyed. U-05 Engineer lays Concrete. Drone Bay destroyed. Lgt. Ion Engine destroyed. Critical hit (Burn: +37). Imp. Hover Unit destroyed. U-05 Engineer lays Concrete. The unstable cave ceiling collapses. Lgt. Ion Engine crushed. U-05 Engineer lays Concrete. Map ----- +----------------------------------------------------+ | #"""#??????????######+#########+#### ????????????? | | #####??????????# ???????????? | | ???????????????# ???????????? | | ???????????????# ???????????? | | ???????????????####### ############# ????????????? | | ?????????????????????# #????## ############??????? | | ?????????????????????# #????# #??????? | | ?????????????????????# #????# """ """ """ #??????? | | ?????????????????????# #????# """ """ R" #??????? | | ?????????????????????# #????# """ """ """ #??????? | | ?????????????????????# ###### #??????? | | ?????????????????????# / #??????? | | ?????????????????????# ##########+#######??????? | | ??????? ##### ###### ############## | | ??????? / | | ?????????????# #####+## ###### ###### | | ??????????????????# ## ####### ###??# """ """ | | ?????????????#????# """## # # #T#### """ """ | | ?????????????# ???# """## # / # """ """ | | ?????????????# ??# """## # # # """ """ | | ?????????????# ?# ## # ###### + """ """ | | ?????????????# ######### # """#????# # | | ?????????????# w # """#????# ######### | | ?????????????# u Yu + """#????# T#??????? | | ?????????????# u Y # """#????# ##??????? | | ?????????????###### u @## """#????""""???????? | | ?????????????????# # # #???????????????? | | ?????????????????## !%YY # #???????????????? | | ?????????????????# =%=Y # #???????????????? | | ?????????????????# # YY!!#### ##???????????????? | | ?????????????????## ##???##????????????????? | | ??????????????????# #??????????????????????? | | ??????????????????#### ####??????????????????????? | | ?????????????????????##??????????????????????????? | | ?????????????????????????????????????????????????? | | ?????????????????????????????????????????????????? | | ?????????????????????????????????????????????????? | | ?????????????????????????????????????????????????? | | | | | | | | | | | | | | | | | | | | | | | | | +----------------------------------------------------+ Best States ------------- Heat Dissipation 28 Energy Generation 10 Energy Capacity 125 Matter Stores 267 Matter Capacity 300 Sight Range 16 Terrain Scan Density 85 Evasion (%) 55 Recoil Reduction 2 Item Schematics ----------------- None Robot Schematics ------------------ None Fabricated ------------ Nothing Alien Tech Used ----------------- None Achievements -------------- None Challenges ------------ None Game ------ Seed MediumAblativeKinecellerator Manual? 0 Play Time 00:25:20 Cumulative 8.0 hours Start 2024.04.15 @ 20:43:02 End 2024.04.15 @ 21:14:25 Sessions 1 Manual Loads 0 Difficulty Rogue Special Mode None Game No. 14 Rogue 14 Adventurer 0 Explorer 0 Win Type - Total 0 Types 0/0/0/0/0/0/0/0/0 Lore% 17 Gallery% 15 Achievement% 13 Wizard Run 0 Options --------- Layout 1 ASCII 0 Keyboard 0 Movement Mouse Keybinds 0 Fullscreen 1 Font 24/Smallcaps Map View 50x35 Zoom Use 0% Tactical HUD 0 Map Filters NONE Filters NONE Steam 1 RUN: 8e936954-1c92-474a-bb4a-a282d3a3099d